bitfinex/quotes_ETHUSD_20241130
["timestamp","ask_amount","ask_price","bid_price","bid_amount"]
[1732954551195,1.45721663,3714.2,3713.9,2.69252]
[1732954551397,0.53792984,3714.2,3714.0,2.6925]
[1732954551606,1.45721663,3714.2,3714.0,2.6925]
[1732954552013,1.45721663,3714.2,3713.8,2.69261]
[1732954552214,0.91928679,3713.9,3713.7,0.55]
[1732954552943,0.91928679,3713.9,3713.5,2.69287]
[1732954554333,0.91928679,3713.9,3713.6,0.55]
[1732954555652,0.91928679,3713.9,3713.4,0.55]
[1732954555951,0.91928679,3713.9,3713.5,0.55]
[1732954556156,0.53792984,3714.2,3713.3,0.55]
[1732954556157,0.91928679,3713.6,3713.3,0.55]
[1732954556523,0.91928679,3713.6,3713.3,3.243]
[1732954556930,0.91928679,3713.6,3713.3,0.55]
[1732954557133,0.91928679,3713.6,3713.3,3.24298]
[1732954557320,0.91928679,3713.6,3713.4,2.69294]
[1732954557521,0.91928679,3713.6,3713.3,2.69301]
[1732954557722,0.91928679,3713.6,3713.4,0.55]
[1732954560356,1.6169,3713.8,3713.4,0.55]
[1732954560955,0.25165685,3713.7,3713.4,0.55]
[1732954561115,1.6169,3713.8,3713.4,0.55]
[1732954561319,0.2516598,3713.7,3713.4,0.55]
[1732954561556,1.6169,3713.8,3713.4,0.55]
[1732954562073,1.6169,3713.8,3713.4,3.24292]
[1732954562568,0.5397891,3713.5,3713.4,3.24292]
[1732954565784,0.5397891,3713.5,3713.3,0.55]
[1732954565983,0.5397891,3713.5,3713.3,3.24301]
[1732954567381,0.5397891,3713.5,3713.1,2.69316]
[1732954567382,0.5397891,3713.5,3713.4,2.69294]
[1732954567540,0.5397891,3713.5,3713.4,3.24294]
[1732954568278,1.5999,3714.1,3713.6,0.55]
[1732954568486,0.25208988,3714.0,3713.7,2.69272]
[1732954568660,0.25208988,3713.9,3713.8,0.55]
[1732954569054,1.5999,3714.1,3713.8,3.24265]
[1732954569291,0.1683903,3714.6,3713.8,3.24265]
[1732954569292,0.25207833,3714.0,3713.9,5.368517]
[1732954569488,0.53486078,3714.3,3713.9,5.368517]
[1732954569489,0.53486078,3714.3,3714.2,3.24236]
[1732954569653,0.40326029,3714.9,3714.5,3.24209]
[1732954569855,0.25203547,3714.8,3714.6,2.69205]
[1732954570171,0.25203547,3714.7,3714.6,3.24205]
[1732954570699,0.91928679,3714.8,3714.7,0.55]
[1732954570907,0.2519417,3714.8,3714.7,0.55]
[1732954571193,0.2519417,3714.8,3714.6,3.24206]
[1732954571378,3.63626941,3715.1,3714.6,3.24206]
[1732954571698,0.2518711,3715.0,3714.0,3.55]
[1732954571902,0.54556619,3714.8,3714.4,0.55]
[1732954574202,0.54556619,3714.8,3714.4,2.69216]
[1732954574496,0.54556619,3714.8,3714.5,3.2421]
[1732954574854,0.54556619,3714.8,3714.3,3.24226]
[1732954575248,0.54556619,3714.8,3714.0,0.55]
[1732954575462,0.54556619,3714.8,3714.0,4.05824]
[1732954575682,0.54556619,3714.8,3714.5,0.55]
[1732954576409,0.54556619,3714.8,3714.3,2.69229]
[1732954576552,0.54556619,3714.8,3714.4,2.69216]
[1732954576770,0.54556619,3714.8,3714.5,0.55]
[1732954580767,0.54556619,3714.8,3714.0,3.50824]
[1732954580967,0.25153866,3714.7,3714.2,2.69232]
[1732954581207,0.54556619,3714.8,3714.3,2.69227]
[1732954581414,2.28790207,3714.7,3714.3,2.69227]
[1732954581621,2.03636941,3714.7,3714.3,2.69227]
[1732954582075,2.03636941,3714.7,3714.4,0.55]
[1732954583972,2.03636941,3714.7,3714.6,0.55]
[1732954584194,2.03636941,3714.7,3714.4,3.24221]
[1732954584511,2.03636941,3714.7,3714.3,0.55]
[1732954585087,2.03636941,3714.7,3714.4,2.69216]
[1732954585288,2.03636941,3714.7,3714.5,0.55]
[1732954586395,2.03636941,3714.7,3714.6,3.24207]
[1732954587232,0.54556619,3714.8,3714.7,3.242]
[1732954587445,4.1892356,3714.8,3713.5,1.6152]
[1732954587587,2.03636941,3713.8,3712.8,1.6152]
[1732954587817,2.03636941,3713.8,3713.3,2.69296]
[1732954588431,2.03636941,3713.8,3713.4,2.69294]
[1732954588615,2.03636941,3713.4,3712.8,1.6152]
[1732954588818,2.03636941,3713.4,3713.1,2.69313]
[1732954590093,4.30039,3713.3,3711.3,8.08341]
[1732954590292,2.03636941,3712.8,3712.3,2.6937]
[1732954591118,2.03636941,3712.8,3712.4,2.69367]
[1732954591741,2.03636941,3712.8,3712.2,2.69379]
[1732954591940,2.03636941,3712.8,3712.3,0.55]
[1732954592101,2.03636941,3712.8,3712.3,2.69372]
[1732954592305,2.03636941,3712.8,3712.4,0.55]
[1732954592628,2.03636941,3712.8,3712.0,1.6152]
[1732954592629,2.03636941,3712.8,3712.3,0.55]
[1732954593745,2.03636941,3712.8,3712.2,2.69374]
[1732954593949,2.03636941,3712.8,3712.4,0.55]
[1732954595308,2.03636941,3712.8,3712.2,2.6938]
[1732954595645,2.03636941,3712.8,3712.4,0.55]
[1732954598733,2.03636941,3712.8,3712.4,3.24366]
[1732954598921,0.92004739,3712.5,3712.4,3.24366]
[1732954600532,0.92004739,3712.5,3712.2,3.24377]
[1732954600949,0.92004739,3712.5,3712.4,0.55]
[1732954601351,2.53424739,3712.5,3712.1,2.69388]
[1732954601516,0.92004739,3712.2,3711.9,3.0]
[1732954601719,0.92004739,3712.2,3712.0,2.69395]
[1732954602617,0.92004739,3712.2,3712.1,0.55]
[1732954603067,0.92004739,3712.2,3712.1,3.24389]
[1732954603270,0.92004739,3712.6,3712.1,2.990192]
[1732954603419,0.92004739,3712.6,3712.5,3.2436]
[1732954604317,0.92004739,3712.6,3712.4,0.55]
[1732954605635,0.92004739,3712.5,3712.4,0.55]
[1732954605839,1.6142,3712.4,3711.9,2.69398]
[1732954606045,0.92004739,3712.0,3711.9,2.69398]
[1732954606366,0.92004739,3712.0,3711.7,2.69417]
[1732954606970,2.03937263,3712.2,3711.5,4.24072]
[1732954607201,2.03937263,3711.8,3711.5,2.69432]
[1732954608467,2.03937263,3711.8,3711.6,2.69423]
[1732954608669,2.03937263,3711.8,3711.7,2.69418]
[1732954608964,1.6142,3712.1,3711.8,3.24409]
[1732954609518,1.6142,3712.1,3711.5,2.69427]
[1732954609519,1.6142,3712.1,3711.6,0.55]
[1732954609723,1.6142,3712.1,3711.9,0.55]
[1732954610036,1.6142,3712.1,3711.7,0.55]
[1732954610859,1.6142,3712.1,3711.7,3.24415]
[1732954611537,1.6142,3712.1,3711.9,0.55]
[1732954613376,2.03937263,3712.0,3711.9,0.55]
[1732954613526,2.03937263,3712.0,3711.7,0.55]
[1732954613728,2.57466528,3712.0,3711.7,0.55]
[1732954614576,2.57466528,3712.0,3711.5,0.55]
[1732954614744,2.03937263,3711.6,3711.5,0.55]
[1732954615292,2.03937263,3711.6,3711.2,3.24451]
[1732954615443,2.03937263,3711.6,3711.3,2.69445]
[1732954615642,2.03937263,3711.6,3711.1,2.6946]
[1732954615643,2.03937263,3711.6,3711.4,0.55]
[1732954615878,2.03937263,3711.6,3711.2,0.55]
[1732954616290,2.03937263,3711.6,3711.2,3.2445]
[1732954616468,2.03937263,3711.6,3711.3,2.69447]
[1732954616990,2.03937263,3711.6,3711.4,0.55]
[1732954618457,2.03937263,3711.6,3711.5,0.55]
[1732954619487,2.03937263,3711.6,3710.9,1.5208]
[1732954619488,2.03937263,3711.6,3711.3,3.24447]
[1732954619851,2.03937263,3711.6,3711.2,0.55]
[1732954620076,2.03937263,3711.6,3711.5,0.55]
[1732954620247,2.03937263,3711.6,3711.4,0.55]
[1732954620996,2.03937263,3711.6,3711.2,0.55]
[1732954621158,2.03937263,3711.6,3711.3,0.55]
[1732954621360,2.03937263,3711.6,3711.3,3.24446]
[1732954623310,2.03937263,3711.6,3711.2,2.69453]
[1732954623608,2.03937263,3711.6,3711.3,0.55]
[1732954624225,2.03937263,3711.6,3711.4,0.55]
[1732954624808,2.03937263,3711.6,3711.1,0.55]
[1732954624996,2.03937263,3711.6,3711.1,3.24457]
[1732954625196,2.03937263,3711.6,3711.0,0.55]
[1732954625370,1.6001613,3711.5,3711.0,0.55]
[1732954625568,2.03937263,3711.2,3710.4,1.5923]
[1732954625805,2.03937263,3711.2,3710.4,4.28741]
[1732954626000,2.03937263,3711.2,3710.4,1.63639584]
[1732954626183,2.03937263,3711.2,3710.5,0.16363958]
[1732954626383,2.03937263,3711.2,3710.7,2.69489]
[1732954626583,2.03937263,3711.2,3710.6,2.69493]
[1732954626812,2.03937263,3711.2,3710.5,2.85867958]
[1732954627018,2.03937263,3711.2,3710.8,2.69477]
[1732954627382,2.03937263,3711.2,3710.9,0.55]
[1732954628973,0.92073512,3711.2,3710.9,0.55]
[1732954630430,0.54319722,3711.0,3710.9,0.55]
[1732954631220,0.54319722,3711.0,3710.9,3.24476]
[1732954631693,0.54319722,3711.0,3710.9,3.28407296]
[1732954632233,0.54319722,3711.0,3710.9,0.58931296]
[1732954632735,0.54319722,3711.0,3710.9,3.28407296]
[1732954634803,0.54319722,3711.0,3710.9,5.43785726]
[1732954636346,0.54319722,3711.0,3710.9,3.28407296]
[1732954640046,2.18539722,3711.0,3710.9,3.28407296]
[1732954640419,0.54319722,3711.0,3710.9,3.28407296]
[1732954642758,0.54319722,3711.0,3710.9,0.58931296]
[1732954645473,1.71640474,3711.0,3710.9,0.58931296]
[1732954645699,3.35860474,3711.0,3710.9,0.58931296]
[1732954645920,3.35860474,3711.0,3710.9,0.03931296]
[1732954646074,3.7625695,3711.0,3710.3,2.69519]
[1732954646274,0.2524724,3710.9,3710.3,2.69519]
[1732954646477,0.2524724,3710.8,3710.3,2.69519]
[1732954646797,3.10613234,3711.0,3710.3,2.69519]
[1732954647108,1.5815,3710.8,3710.2,0.55]
[1732954647316,0.25241107,3710.7,3710.3,0.55]
[1732954647505,1.5815,3710.8,3710.3,0.55]
[1732954647679,1.17309779,3710.7,3710.3,0.55]
[1732954647877,0.92073512,3710.7,3710.3,0.55]
[1732954648270,0.92073512,3710.7,3709.7,1.6112]
[1732954648474,0.25233552,3710.6,3710.0,2.69534]
[1732954648780,0.92073512,3710.7,3710.3,2.69512]
[1732954649113,0.92073512,3710.7,3709.7,2.041893]
[1732954649114,0.92073512,3710.7,3710.4,2.69511]
[1732954649616,0.92073512,3710.7,3710.5,0.55]
[1732954650111,0.25230381,3710.6,3710.5,0.55]
[1732954650474,0.25230381,3710.6,3710.2,2.69525]
[1732954650674,0.92073512,3710.7,3710.3,0.55]
[1732954651377,1.5815,3710.3,3710.1,0.55]
[1732954651713,1.5815,3710.3,3709.9,0.55]
[1732954652126,1.5101,3710.0,3709.2,1.6657]
[1732954652328,1.5101,3709.4,3708.5,2.856619]
[1732954652628,1.32417126,3710.3,3708.5,0.160119]
[1732954652629,1.5101,3708.9,3708.5,0.160119]
[1732954653139,0.92073512,3708.7,3708.5,0.160119]
[1732954653341,1.5101,3708.6,3708.5,0.160119]
[1732954654831,1.5101,3708.6,3708.5,0.710119]
[1732954655187,0.53864427,3708.9,3708.8,3.24622]
[1732954655935,1.5101,3709.4,3709.1,0.55]
[1732954656089,0.53524673,3709.4,3709.3,0.55]
[1732954656289,0.53524673,3709.4,3709.2,2.69596]
[1732954656497,0.53524673,3709.4,3709.3,0.55]
[1732954657407,0.53524673,3709.4,3709.2,2.69598]
[1732954657619,0.53524673,3709.4,3709.0,0.55]
[1732954657925,0.78400447,3709.7,3709.6,0.55]
[1732954658494,1.32210944,3709.7,3709.6,3.2457]
[1732954658914,1.32210944,3709.7,3709.5,0.55]
[1732954659102,1.32210944,3709.7,3709.5,3.24577]
[1732954659537,1.32210944,3709.7,3709.4,0.55]
[1732954660335,1.5101,3709.6,3709.2,0.55]
[1732954660660,1.5101,3709.6,3708.9,2.6962]
[1732954660826,1.5101,3709.6,3709.0,0.55]
[1732954661152,1.32210944,3709.7,3709.0,2.2157]
[1732954661366,1.32210944,3709.7,3709.6,3.2457]
[1732954661652,1.5101,3710.3,3710.1,0.55]
[1732954661860,1.5101,3710.8,3710.1,0.55]
[1732954662028,1.5101,3710.8,3710.1,3.24532]
[1732954662229,1.5101,3710.8,3710.3,0.55]
[1732954662645,1.5101,3710.8,3710.1,0.55]
[1732954662816,1.76098335,3710.8,3710.1,0.55]
[1732954663457,1.76098335,3710.8,3709.9,0.55]
[1732954663662,0.52809588,3710.5,3710.4,3.24506]
[1732954664020,1.5101,3710.8,3710.5,0.55]
[1732954664221,2.05936918,3710.8,3710.5,0.55]
[1732954664573,2.05936918,3710.8,3710.5,3.24502]
[1732954665133,2.05936918,3710.8,3710.1,0.55]
[1732954665372,2.05936918,3710.8,3710.3,0.55]
[1732954665533,0.2692,3710.7,3710.3,0.55]
[1732954665857,0.2692,3710.7,3710.5,0.55]
[1732954666066,0.2692,3710.7,3710.6,3.24498]
[1732954668377,0.2692,3711.0,3710.9,3.24476]
[1732954669533,0.2692,3711.0,3710.6,0.55]
[1732954669732,0.2692,3711.0,3710.9,0.55]
[1732954670096,0.2692,3711.0,3710.9,3.24476]
[1732954670571,0.2692,3711.0,3710.9,3.838717]
[1732954670737,0.2692,3711.0,3710.9,5.449617]
[1732954671483,0.2692,3711.9,3711.8,3.24406]
[1732954671660,0.79506173,3711.9,3711.8,3.24406]
[1732954671874,0.79506173,3711.9,3711.6,2.69421]
[1732954672053,0.79506173,3711.9,3711.7,2.69412]
[1732954672952,0.2692,3711.8,3711.5,1.6126]
[1732954673281,0.2692,3711.8,3711.7,5.69418]
[1732954673583,0.2692,3711.8,3711.7,7.85678]
[1732954674964,0.2692,3711.8,3711.7,5.1626]
[1732954675180,0.2692,3711.8,3711.7,4.85678]
[1732954675341,0.2692,3711.8,3711.7,7.85678]
[1732954675687,0.2692,3711.8,3711.7,8.928011]
[1732954677581,0.2692,3712.7,3711.7,8.928011]
[1732954677784,0.2692,3712.7,3712.6,2.69353]
[1732954678079,0.2692,3712.7,3711.9,1.6126]
[1732954678295,0.2692,3712.7,3712.3,2.69374]
[1732954678508,0.2692,3712.7,3712.4,2.69362]
[1732954679648,0.2692,3712.7,3712.6,3.24353]
[1732954679893,0.2692,3712.7,3712.6,0.55]
[1732954680096,0.2692,3712.7,3712.4,0.55]
[1732954680391,0.2692,3712.7,3712.6,3.24353]
[1732954681296,0.2692,3712.7,3712.6,5.449845]
[1732954682699,0.2692,3712.7,3712.6,8.449845]
[1732954683302,0.2692,3713.2,3713.1,2.69316]
[1732954683669,0.2692,3713.2,3713.1,3.24316]
[1732954684166,0.2692,3713.2,3713.1,4.85576]
[1732954684362,0.2692,3713.6,3713.5,2.69287]
[1732954684888,0.2692,3713.6,3713.5,3.24287]
[1732954685091,0.2692,3713.6,3713.4,2.69294]
[1732954685307,0.2692,3713.6,3713.5,3.24287]
[1732954685473,0.2692,3713.6,3713.5,0.55]
[1732954685875,0.2692,3713.6,3713.5,3.24287]
[1732954686061,0.2692,3713.6,3713.5,3.836458]
[1732954686680,0.2692,3713.6,3713.5,5.371558]
[1732954687061,0.2692,3713.6,3713.5,3.836458]
[1732954687314,0.2692,3713.6,3713.5,3.24287]
[1732954688608,0.53817118,3714.1,3713.8,2.69263]
[1732954688609,0.2692,3714.0,3713.8,2.69263]
[1732954688810,0.2692,3714.0,3713.2,1.5351]
[1732954688811,0.2692,3714.0,3713.9,0.55]
[1732954691487,0.2692,3713.4,3713.0,2.69323]
[1732954692739,0.2692,3712.2,3711.4,4.34868]
[1732954692886,0.2692,3712.2,3711.9,2.69402]
[1732954693087,0.2692,3712.2,3712.0,2.69395]
[1732954693308,0.2692,3712.2,3712.0,2.6939]
[1732954693510,0.2692,3712.2,3711.5,0.02693851]
[1732954693511,0.2692,3712.2,3712.1,2.69389]
[1732954693712,0.2692,3712.5,3712.2,2.6938]
[1732954693911,0.2692,3712.5,3711.5,0.02693851]
[1732954693912,0.2692,3712.5,3712.3,2.69373]
[1732954694456,0.2692,3712.5,3712.4,2.69367]
[1732954694661,0.2692,3712.5,3712.4,3.23241]
[1732954694962,0.2692,3712.5,3712.4,3.22945898]
[1732954695164,0.2692,3712.5,3712.4,6.22945898]
[1732954695319,0.2692,3712.5,3712.4,6.77945898]
[1732954695715,0.5444735,3713.3,3712.6,0.55]
[1732954695716,0.51989459,3713.1,3712.6,0.55]
[1732954695910,0.2692,3713.1,3712.6,3.2435]
[1732954696114,0.2692,3713.1,3712.6,0.55]
[1732954696315,0.2692,3713.1,3712.7,2.69345]
[1732954696616,0.2692,3713.2,3712.7,2.69345]
[1732954696812,0.2692,3713.2,3712.6,0.55]
[1732954697051,0.2692,3713.0,3712.5,0.55]
[1732954697743,0.2692,3713.0,3712.4,3.0]
[1732954697941,0.2692,3713.0,3712.5,0.55]
[1732954698113,0.2692,3713.0,3711.9,5.69403]
[1732954698317,0.2692,3712.8,3711.8,1.6543]
[1732954698512,0.2692,3712.6,3712.0,2.69396]
[1732954698758,0.2692,3712.8,3711.8,1.6543]
[1732954698964,0.2692,3712.6,3711.8,1.81973]
[1732954699116,0.2692,3712.6,3712.2,2.69376]
[1732954699320,0.2692,3712.6,3712.1,2.69389]
[1732954699520,0.2692,3712.6,3712.2,2.69377]
[1732954699719,0.67128265,3713.0,3712.2,2.69377]
[1732954699971,0.2692,3712.8,3712.2,2.69377]
[1732954700263,0.2692,3712.6,3712.2,2.69377]
[1732954700568,0.2692,3712.6,3712.5,2.6936]
[1732954700717,0.2692,3712.9,3712.6,2.69351]
[1732954701126,0.2692,3712.9,3712.8,3.24338]
[1732954701330,0.2692,3712.9,3712.8,4.002499]
[1732954702275,0.2692,3712.9,3712.8,3.24338]
[1732954702863,0.67175517,3713.4,3712.9,0.55]
[1732954703064,0.2692,3713.2,3712.9,0.55]
[1732954703234,0.2692,3713.0,3712.9,0.55]
[1732954703438,0.52079432,3713.0,3712.9,0.55]
[1732954703969,0.52079432,3713.0,3712.8,3.24336]
[1732954704123,0.52079432,3712.9,3712.8,2.69336]
[1732954704327,0.2692,3713.2,3712.9,0.55]
[1732954704539,1.6567,3713.3,3712.6,0.55]
[1732954704540,0.2692,3713.0,3712.6,0.55]
[1732954704857,0.2692,3712.8,3712.6,0.55]
[1732954705052,0.52085532,3712.7,3712.6,3.24353]
[1732954705267,0.2692,3713.1,3712.6,3.24353]
[1732954705470,1.82512753,3713.3,3712.6,3.24353]
[1732954705471,0.2692,3712.9,3712.6,3.24353]
[1732954705669,0.2692,3712.7,3712.6,3.24353]
[1732954706244,0.2692,3712.9,3712.6,3.24353]
[1732954706443,0.2692,3712.7,3712.6,0.55]
[1732954706760,0.2692,3712.7,3712.4,2.69363]
[1732954706761,0.52091215,3712.7,3712.4,6.24362]
[1732954707082,0.2692,3712.7,3712.6,3.24353]
[1732954708840,0.2692,3712.7,3712.5,0.55]
[1732954709147,0.2692,3712.7,3712.5,3.24356]
[1732954709369,0.2692,3713.1,3712.5,3.24356]
[1732954709578,0.2692,3712.9,3712.5,3.24356]
[1732954709882,0.2692,3712.7,3712.5,3.24356]
[1732954710397,0.2692,3712.6,3712.5,3.55]
[1732954710589,0.2692,3712.6,3712.5,6.2436]
[1732954711378,1.6504,3713.1,3712.5,6.2436]
[1732954711379,0.2692,3713.0,3712.6,2.6935]
[1732954711581,0.2692,3712.8,3712.7,0.55]
[1732954711879,0.52093557,3712.8,3712.7,0.55]
[1732954713274,0.2692,3712.8,3712.7,0.55]
[1732954715073,0.52094854,3712.8,3712.4,3.24362]
[1732954715394,0.2692,3712.7,3712.4,3.24362]
[1732954715548,0.2692,3712.7,3712.5,2.69359]
[1732954715750,0.2692,3712.7,3712.4,0.55]
[1732954716191,0.2692,3712.5,3712.2,0.55]
[1732954716784,0.52115213,3712.4,3712.3,3.24374]
[1732954716987,0.2693,3712.4,3712.3,3.24374]
[1732954717404,0.2693,3712.4,3712.3,3.837502]
[1732954717904,0.2693,3712.4,3712.3,6.837502]
[1732954718549,0.18653216,3713.2,3713.0,2.69323]
[1732954718749,0.43851208,3713.1,3713.0,2.69323]
[1732954718961,0.43851208,3713.1,3712.8,4.19665]
[1732954719187,0.40317213,3713.5,3712.9,2.69327]
[1732954719188,0.43851208,3713.0,3712.9,2.69327]
[1732954720090,0.18653216,3713.0,3712.9,2.69327]
[1732954720493,0.18653216,3713.0,3712.9,3.24327]
[1732954720697,2.04313221,3713.7,3712.9,3.24327]
[1732954720698,0.16841731,3713.7,3713.4,0.55]
[1732954721001,0.25212068,3713.6,3713.4,0.55]
[1732954721293,1.5415,3713.9,3713.4,3.24288]
[1732954721294,0.40332298,3713.8,3713.4,3.24288]
[1732954721477,0.25207806,3713.7,3713.4,3.24288]
[1732954721678,0.25207806,3713.6,3713.4,3.24288]
[1732954721881,0.40332487,3713.8,3713.4,3.24288]
[1732954722048,2.07768392,3713.9,3713.4,3.24288]
[1732954722049,0.25208055,3713.7,3713.4,3.24288]
[1732954722254,0.25208055,3713.6,3713.5,2.69285]
[1732954722795,0.25208055,3713.6,3713.5,3.24285]
[1732954724055,2.07768392,3713.9,3713.4,0.55]
[1732954724291,0.25199316,3713.8,3713.4,0.55]
[1732954724500,0.25199316,3713.7,3713.4,0.55]
[1732954724669,2.07768392,3713.9,3713.1,2.69315]
[1732954724670,0.25199316,3713.6,3713.2,3.24302]
[1732954724992,2.07768392,3713.9,3713.3,2.693]
[1732954725155,0.25195889,3713.8,3713.4,0.55]
[1732954725360,0.25195889,3713.7,3713.2,0.55]
[1732954725594,1.5415,3713.5,3713.1,0.55]
[1732954725755,0.25195889,3713.4,3713.0,0.55]
[1732954725954,1.5415,3713.2,3713.0,0.55]
[1732954726165,0.25195889,3713.1,3713.0,0.55]
[1732954726366,1.5415,3713.2,3713.0,0.55]
[1732954726657,0.65525761,3713.1,3713.0,0.55]
[1732954728283,3.34841761,3713.1,3713.0,0.55]
[1732954728594,1.512,3713.0,3711.9,4.24543]
[1732954728909,0.65525761,3712.9,3712.2,2.69381]
[1732954729101,0.25202216,3712.8,3712.2,2.69381]
[1732954729293,0.25202216,3712.7,3712.2,2.69381]
[1732954729464,1.512,3713.0,3711.9,1.5514]
[1732954729664,1.512,3712.7,3711.7,0.55]
[1732954729903,0.65534747,3712.6,3712.1,2.69387]
[1732954730065,0.25204999,3712.5,3712.1,2.69387]
[1732954730270,0.25204999,3712.5,3711.7,0.55]
[1732954730271,0.40323825,3712.9,3712.4,2.69367]
[1732954730472,0.25202045,3712.8,3712.5,2.69359]
[1732954730681,0.25202045,3712.8,3712.3,1.5514]
[1732954730682,1.512,3713.0,3712.3,1.5514]
[1732954730978,0.65522069,3712.9,3712.4,0.55]
[1732954731298,0.25200433,3712.8,3712.4,0.55]
[1732954731464,1.512,3713.0,3712.4,0.55]
[1732954731465,0.25200433,3712.7,3712.4,0.55]
[1732954731662,1.512,3713.0,3712.4,0.55]
[1732954731866,0.25199349,3712.9,3712.4,0.55]
[1732954732172,0.25199349,3712.8,3712.4,0.55]
[1732954732367,0.25199349,3712.7,3712.4,0.55]
[1732954732706,1.512,3713.0,3712.4,0.55]
[1732954732909,0.25197668,3712.9,3712.5,0.55]
[1732954733108,0.25197668,3712.8,3712.5,0.55]
[1732954733313,0.25197668,3712.7,3712.5,0.55]
[1732954733495,1.512,3713.0,3712.5,0.55]
[1732954733673,0.25196345,3712.9,3712.3,0.55]
[1732954733865,0.25196345,3712.8,3712.1,3.55]
[1732954734072,2.69355,3712.6,3711.6,4.34952]
[1732954734384,1.6541,3712.3,3711.4,2.69436]
[1732954734619,0.25198989,3712.2,3711.4,2.69436]
[1732954734798,0.25198989,3712.1,3711.5,2.69427]
[1732954735000,0.25198989,3712.0,3711.5,2.69427]
[1732954735199,2.05712209,3712.3,3711.5,2.69427]
[1732954735402,0.25188929,3712.2,3711.5,2.69427]
[1732954735650,0.25188929,3712.1,3711.5,0.55]
[1732954735830,0.25188929,3712.0,3711.5,0.55]
[1732954736001,2.05711863,3712.3,3711.4,0.55]
[1732954736202,4.59972821,3712.2,3711.2,3.2445]
[1732954736434,0.25179821,3712.1,3711.2,0.55]
[1732954736646,1.90589821,3712.0,3711.2,0.55]
[1732954736802,0.25179821,3711.9,3711.2,0.55]
[1732954737001,1.6541,3712.0,3711.2,0.55]
[1732954737002,0.25179821,3711.8,3711.2,0.55]
[1732954737237,1.6541,3712.0,3711.2,3.24454]
[1732954737406,0.25168958,3711.9,3711.2,3.24454]
[1732954737743,0.25168958,3711.8,3711.0,3.55]
[1732954737913,1.6541,3712.0,3711.2,2.69454]
[1732954738243,0.25168774,3711.9,3711.3,0.55]
[1732954738418,1.6541,3712.0,3711.3,0.55]
[1732954738617,0.25158509,3711.9,3711.3,0.55]
[1732954738836,1.6541,3712.0,3711.1,0.55]
[1732954739152,0.25158687,3711.9,3711.1,0.55]
[1732954739350,4.34808,3712.0,3711.1,0.55]
[1732954739559,4.34808,3712.0,3710.8,2.69483]
[1732954739560,2.94554506,3711.9,3710.9,6.24473]
[1732954739706,4.73732221,3711.7,3710.7,2.69489]
[1732954740042,1.90560522,3711.6,3710.7,2.69488]
[1732954740240,1.6541,3711.6,3710.7,2.69488]
[1732954741018,1.6541,3711.6,3710.8,2.69477]
[1732954741243,1.6541,3711.6,3710.9,0.55]
[1732954741244,1.9055662,3711.6,3710.9,0.55]
[1732954741611,1.6541,3711.6,3710.9,0.55]
[1732954743557,1.6541,3711.6,3711.3,0.55]
[1732954744048,1.6541,3711.6,3711.1,0.55]
[1732954744347,1.6541,3711.6,3711.4,0.55]
[1732954744506,0.25125154,3712.1,3711.4,3.24439]
[1732954744507,1.6541,3711.9,3711.4,3.24439]
[1732954744712,1.6541,3711.9,3711.5,0.55]
[1732954745547,0.54321453,3711.6,3711.5,0.55]
[1732954745756,1.6541,3712.2,3711.1,0.55]
[1732954745986,1.6541,3712.2,3712.0,0.55]
[1732954746188,2.18410484,3712.2,3712.0,0.55]
[1732954747467,0.53000484,3712.2,3711.7,0.55]
[1732954747688,0.53000484,3712.2,3712.1,3.24389]
[1732954749587,0.25104712,3712.8,3712.5,2.6936]
[1732954749798,1.89004242,3713.2,3712.9,0.55]
[1732954749960,1.639,3713.2,3712.9,0.55]
[1732954750165,1.639,3713.2,3712.7,0.55]
[1732954750575,0.25104242,3713.4,3713.1,3.24316]
[1732954750778,1.639,3713.6,3713.2,3.24308]
[1732954750979,1.639,3713.6,3713.4,0.55]
[1732954751309,0.25102411,3713.9,3713.4,0.55]
[1732954751592,2.69266,3713.8,3712.9,2.69325]
[1732954751789,0.53552415,3713.5,3713.0,0.55]
[1732954751956,0.53552415,3713.5,3712.8,0.55]
[1732954752157,0.78656528,3713.5,3712.8,0.55]
[1732954752354,3.22843415,3713.5,3712.7,0.55]
[1732954752557,0.25104113,3713.4,3712.7,3.24339]
[1732954752794,0.53552415,3713.5,3712.7,3.24339]
[1732954752951,0.53552415,3713.5,3713.1,0.55]
[1732954753156,0.53552415,3713.5,3712.9,3.24324]
[1732954753582,0.78668813,3713.5,3712.9,3.24324]
[1732954753815,2.69302,3713.3,3712.4,2.69366]
[1732954754018,0.25116398,3713.2,3712.5,2.69354]
[1732954754319,1.6026,3713.4,3712.5,2.69355]
[1732954754516,0.25127928,3713.3,3712.5,2.69355]
[1732954754722,0.25127928,3713.2,3712.3,2.69372]
[1732954754877,0.25127928,3713.1,3712.4,0.55]
[1732954755078,4.69761322,3713.4,3712.2,3.24378]
[1732954755301,2.69316,3713.1,3712.2,3.24378]
[1732954755513,2.69316,3713.1,3711.9,3.0]
[1732954755514,2.69367,3712.5,3711.5,2.69429]
[1732954755918,0.25143381,3712.4,3711.5,2.69429]
[1732954756093,0.25143381,3712.3,3711.5,2.69429]
[1732954756290,0.25143381,3712.3,3711.6,2.69423]
[1732954756503,0.25143381,3712.2,3711.6,2.69423]
[1732954756705,2.69367,3712.5,3711.6,2.69423]
[1732954756891,0.25145953,3712.4,3711.7,0.55]
[1732954757086,2.0048941,3712.6,3711.7,0.55]
[1732954757087,0.78236144,3712.3,3711.7,0.55]
[1732954757303,0.25145953,3712.5,3712.3,0.55]
[1732954757503,1.6026,3712.6,3712.3,0.55]